lending/lending_fUSD_20250131
["ID","MTS","AMOUNT","RATE_DAILY","PERIOD"]
[351089609,1738330252025,-787.65,0.00016712,2]
[351089610,1738330252034,-500.0,0.00016712,2]
[351089611,1738330252043,-500.0,0.00016712,2]
[351089612,1738330252053,-2405.42,0.00016712,2]
[351089613,1738330252063,-6171.09,0.00016712,2]
[351089614,1738330252072,-509.52,0.00016712,2]
[351089615,1738330252081,-500.0,0.00016712,2]
[351089616,1738330252091,-547.19,0.00016712,2]
[351089617,1738330252101,-825.38,0.00016712,2]
[351089618,1738330252110,-500.0,0.00016712,2]
[351089619,1738330252120,-1388.58,0.00016712,2]
[351089620,1738330252130,-500.0,0.00016712,2]
[351089621,1738330252141,-1907.72,0.00016712,2]
[351089622,1738330252151,-500.0,0.00016712,2]
[351089623,1738330252160,-647.17,0.00016712,2]
[351089624,1738330252170,-500.0,0.00016712,2]
[351089625,1738330252181,-1179.41,0.00016712,2]
[351089626,1738330252191,-1165.58,0.00016712,2]
[351089627,1738330252200,-4741.78,0.00016712,2]
[351089628,1738330252210,-514.4660509,0.0001678,2]
[351089629,1738330252220,-1197.0,0.00016795,2]
[351089630,1738330252230,-162.16197459,0.00016795,2]
[351089631,1738330252241,-400.87,0.00016813,2]
[351089632,1738330252251,-500.0,0.00016848,2]
[351089633,1738330252261,-500.0,0.00016848,2]
[351089634,1738330252271,-500.0,0.00016848,2]
[351089635,1738330252281,-500.0,0.00016848,2]
[351089636,1738330252292,-500.0,0.00016848,2]
[351089637,1738330252302,-500.0,0.00016848,2]
[351089638,1738330252313,-500.0,0.00016848,2]
[351089639,1738330252323,-500.0,0.00016848,2]
[351089640,1738330252333,-500.0,0.00016848,2]
[351089641,1738330252343,-500.0,0.00016848,2]
[351089642,1738330252354,-500.0,0.00016848,2]
[351089643,1738330252365,-500.0,0.00016848,2]
[351089644,1738330252376,-647.45,0.00016848,2]
[351089645,1738330252385,-500.0,0.00016848,2]
[351089646,1738330252395,-197.84736141,0.00016848,2]
[351089647,1738330252405,-500.0,0.00016848,2]
[351089648,1738330252415,-500.0,0.00016848,2]
[351089649,1738330252425,-500.0,0.00016848,2]
[351089650,1738330252436,-505.98732352,0.00016848,2]
[351089651,1738330252446,-500.0,0.00016848,2]
[351089652,1738330252456,-500.0,0.00016848,2]
[351089653,1738330252466,-533.58,0.00016848,2]
[351089654,1738330252476,-500.0,0.00016848,2]
[351089655,1738330252486,-500.0,0.00016848,2]
[351089656,1738330252495,-500.0,0.00016848,2]
[351089657,1738330252505,-921.76,0.00016848,2]
[351089658,1738330252514,-500.0,0.00016848,2]
[351089659,1738330252524,-554.28,0.00016848,2]
[351089660,1738330252535,-500.0,0.00016848,2]
[351089661,1738330252547,-500.0,0.00016848,2]
[351089662,1738330252556,-500.0,0.00016848,2]
[351089663,1738330252566,-500.0,0.00016848,2]
[351089664,1738330252575,-500.0,0.00016848,2]
[351089665,1738330252585,-535.26,0.00016848,2]
[351089666,1738330252595,-500.0,0.00016848,2]
[351089667,1738330252604,-500.0,0.00016848,2]
[351089668,1738330252615,-500.0,0.00016848,2]
[351089669,1738330252625,-500.0,0.00016848,2]
[351089670,1738330252634,-548.31,0.00016848,2]
[351089671,1738330252644,-500.0,0.00016848,2]
[351089672,1738330252654,-500.0,0.00016848,2]
[351089673,1738330252663,-500.0,0.00016848,2]
[351089674,1738330252672,-500.0,0.00016848,2]
[351089675,1738330252683,-504.97,0.00016848,2]
[351089676,1738330252692,-500.0,0.00016848,2]
[351089677,1738330252702,-500.0,0.00016848,2]
[351089678,1738330252711,-500.0,0.00016848,2]
[351089679,1738330252721,-500.0,0.00016848,2]
[351089680,1738330252731,-500.0,0.00016848,2]
[351089681,1738330252741,-241.56930154,0.00016848,2]
[351089682,1738330252750,-500.0,0.00016848,2]
[351089683,1738330252760,-672.19,0.00016848,2]
[351089684,1738330252770,-500.0,0.00016848,2]
[351089685,1738330252780,-500.0,0.00016848,2]
[351089686,1738330252791,-500.0,0.00016848,2]
[351089687,1738330252802,-718.71,0.00016848,2]
[351089688,1738330252811,-500.0,0.00016848,2]
[351089689,1738330252821,-500.0,0.00016848,2]
[351089690,1738330252831,-500.0,0.00016848,2]
[351089691,1738330252842,-500.0,0.00016848,2]
[351089692,1738330252851,-500.0,0.00016848,2]
[351089693,1738330253113,-500.0,0.00016848,2]
[351089694,1738330253133,-500.0,0.00016848,2]
[351089695,1738330253142,-500.0,0.00016848,2]
[351089696,1738330253151,-3437.57,0.00016848,2]
[351089697,1738330253160,-527.97,0.00016848,2]
[351089698,1738330253169,-1958.17,0.00016848,2]
[351089699,1738330253179,-500.0,0.00016848,2]
[351089700,1738330253189,-1086.27,0.00016848,2]
[351089701,1738330253198,-500.0,0.00016848,2]
[351089702,1738330253207,-500.0,0.00016848,2]
[351089703,1738330253216,-508.42,0.00016848,2]
[351089704,1738330253226,-500.0,0.00016848,2]
[351089705,1738330253235,-2213.4,0.00016848,2]
[351089706,1738330253244,-500.0,0.00016848,2]
[351089707,1738330253254,-750.16,0.00016848,2]
[351089708,1738330253263,-1648.29,0.00016848,2]
[351089709,1738330253272,-1214.4,0.00016848,2]
[351089710,1738330253281,-535.09,0.00016848,2]
[351089711,1738330253291,-1054.03,0.00016848,2]
[351089712,1738330253300,-506.32098422,0.00016848,2]
[351089713,1738330253309,-1696.88,0.00016848,2]
[351089714,1738330253319,-500.0,0.00016848,2]
[351089715,1738330253328,-913.79,0.00016848,2]
[351089716,1738330253338,-798.88,0.00016848,2]
[351089717,1738330253347,-500.0,0.00016848,2]
[351089718,1738330253358,-500.0,0.00016848,2]
[351089719,1738330253368,-887.86,0.00016848,2]
[351089720,1738330253377,-1548.0,0.00016848,2]
[351089721,1738330253386,-500.0,0.00016848,2]
[351089722,1738330253396,-500.0,0.00016848,2]
[351089723,1738330253407,-777.96,0.00016848,2]
[351089724,1738330253416,-1988.47,0.00016848,2]
[351089725,1738330253426,-500.0,0.00016848,2]
[351089726,1738330253438,-500.0,0.00016848,2]
[351089727,1738330253448,-2656.93,0.00016848,2]
[351089728,1738330253459,-500.0,0.00016848,2]
[351089729,1738330253469,-2337.51,0.00016848,2]
[351089730,1738330253478,-500.0,0.00016848,2]
[351089731,1738330253488,-4645.5,0.00016848,2]
[351089732,1738330253497,-500.0,0.00016848,2]
[351089733,1738330253507,-376.71948177,0.00016848,2]
[351089734,1738330253517,-500.0,0.00016848,2]
[351089735,1738330253527,-323.09898262,0.00016848,7]
[351089736,1738330253538,-10518.3,0.00016848,2]
[351089737,1738330253548,-500.0,0.00016848,2]
[351089738,1738330253558,-500.0,0.00016848,2]
[351089739,1738330253567,-500.0,0.00016848,2]
[351089740,1738330253578,-500.0,0.00016848,2]
[351089741,1738330253587,-500.0,0.00016848,2]
[351089742,1738330253597,-500.0,0.00016848,2]
[351089743,1738330253607,-1506.86,0.00016848,2]
[351089744,1738330253618,-878.68,0.00016848,2]
[351089745,1738330253628,-500.0,0.00016848,2]
[351089746,1738330253638,-500.0,0.00016849,2]
[351089747,1738330253648,-585.38,0.00016849,2]
[351089748,1738330253658,-500.0,0.00016849,2]
[351089749,1738330253667,-202.1144043,0.00016849,2]
[351089750,1738330253677,-501.6,0.00016849,2]
[351089751,1738330253689,-500.0,0.00016849,2]
[351089752,1738330253699,-516.69188497,0.00016849,2]
[351089753,1738330253709,-500.0,0.00016849,2]
[351089754,1738330253718,-500.0,0.00016849,2]
[351089755,1738330253728,-356.76105852,0.00016849,2]
[351089756,1738330253737,-500.0,0.00016849,2]
[351089757,1738330253746,-500.0,0.00016849,2]
[351089758,1738330253756,-500.0,0.00016849,2]
[351089759,1738330253765,-1050.63,0.00016849,2]
[351089760,1738330253775,-2526.07,0.00016849,2]
[351089761,1738330253784,-209.71348744,0.00016849,2]
[351089762,1738330253794,-500.0,0.00016849,2]
[351089763,1738330253803,-500.0,0.00016849,2]
[351089764,1738330253812,-708.56,0.00016849,2]
[351089765,1738330253822,-500.0,0.00016849,2]
[351089766,1738330253831,-500.0,0.00016849,2]
[351089767,1738330253841,-928.97,0.00016849,2]
[351089768,1738330253850,-1010.68,0.00016849,2]
[351089769,1738330253860,-660.51,0.00016849,2]
[351089770,1738330253869,-764.61,0.00016849,2]
[351089771,1738330253881,-500.0,0.00016849,2]
[351089772,1738330253890,-823.51,0.00016849,2]
[351089773,1738330253900,-596.38,0.00016849,2]
[351089774,1738330253911,-500.0,0.00016849,2]
[351089775,1738330253920,-500.0,0.00016849,2]
[351089776,1738330253932,-500.0,0.00016849,2]
[351089777,1738330253942,-1181.6,0.00016849,2]
[351089778,1738330253952,-1755.36,0.00016849,2]
[351089779,1738330253962,-774.61,0.00016849,2]
[351089780,1738330253971,-691.43,0.00016849,2]
[351089781,1738330253982,-945.59,0.00016849,2]
[351089782,1738330253993,-500.0,0.00016849,2]
[351089783,1738330254002,-678.94,0.00016849,2]
[351089784,1738330254012,-500.0,0.00016849,2]
[351089785,1738330254021,-500.0,0.00016849,2]
[351089786,1738330254031,-502.29,0.00016849,2]
[351089787,1738330254040,-1393.13,0.00016849,2]
[351089788,1738330254049,-500.0,0.00016849,2]
[351089789,1738330254058,-1153.02,0.00016849,2]
[351089790,1738330254068,-684.77,0.00016849,2]
[351089791,1738330254077,-796.76,0.00016849,2]
[351089792,1738330254086,-732.31,0.00016849,2]
[351089793,1738330254095,-500.0,0.00016849,2]
[351089794,1738330254105,-500.0,0.00016849,2]
[351089795,1738330254114,-1222.29,0.00016849,2]
[351089796,1738330254123,-768.25,0.00016849,2]
[351089797,1738330254133,-500.0,0.00016849,2]
[351089798,1738330254142,-1062.2,0.00016849,2]
[351089799,1738330254151,-500.0,0.00016849,2]
[351089800,1738330254160,-649.99,0.00016849,2]
[351089801,1738330254170,-672.57,0.00016849,2]
[351089802,1738330254179,-707.49,0.00016849,2]
[351089803,1738330254190,-668.38,0.00016849,2]
[351089804,1738330254200,-500.0,0.00016849,2]
[351089805,1738330254209,-552.78,0.00016849,2]
[351089806,1738330254219,-655.08,0.00016849,2]
[351089807,1738330254228,-853.48,0.00016849,2]
[351089808,1738330254237,-543.67,0.00016849,2]
[351089809,1738330254247,-810.58,0.00016849,2]
[351089810,1738330254257,-500.0,0.00016849,2]
[351089811,1738330254266,-553.86,0.00016849,2]
[351089812,1738330254275,-500.0,0.00016849,2]
[351089813,1738330254285,-470.03897394,0.00016849,2]
[351089814,1738330254294,-618.0,0.00016849,2]
[351089815,1738330254304,-500.0,0.00016849,2]
[351089816,1738330254314,-611.55,0.00016849,2]
[351089817,1738330254323,-500.0,0.00016849,2]
[351089818,1738330254333,-500.0,0.00016849,2]
[351089819,1738330254342,-780.11,0.00016849,2]
[351089820,1738330254351,-1177.028054,0.00016849,2]
[351089821,1738330254360,-569.96,0.00016849,2]
[351089822,1738330254369,-667.09,0.00016849,2]
[351089823,1738330254379,-500.0,0.00016849,2]
[351089824,1738330254388,-906.03,0.00016849,2]
[351089825,1738330254398,-528.42,0.00016849,2]
[351089826,1738330254407,-500.0,0.00016849,2]
[351089827,1738330254416,-576.51,0.00016849,2]
[351089828,1738330254426,-1111.52,0.00016849,2]
[351089829,1738330254435,-1040.51,0.00016849,2]
[351089830,1738330254444,-500.0,0.00016849,2]
[351089831,1738330254454,-817.512057,0.00016849,2]
[351089832,1738330254463,-558.66,0.00016849,2]
[351089833,1738330254472,-500.0,0.00016849,2]
[351089834,1738330254482,-749.14,0.00016849,2]
[351089835,1738330254491,-500.0,0.00016849,2]
[351089836,1738330254501,-1177.09,0.00016849,2]
[351089837,1738330254510,-500.0,0.00016849,2]
[351089838,1738330254520,-617.77,0.00016849,2]
[351089839,1738330254532,-500.0,0.00016849,2]
[351089840,1738330254542,-500.0,0.00016849,2]
[351089841,1738330254551,-500.0,0.00016849,2]
[351089842,1738330254561,-896.66,0.00016849,2]
[351089843,1738330254571,-1019.41,0.00016849,2]
[351089844,1738330254580,-500.0,0.00016849,2]
[351089845,1738330254590,-787.85,0.00016849,2]
[351089846,1738330254599,-500.0,0.00016849,2]
[351089847,1738330254610,-749.64,0.00016849,2]
[351089848,1738330254620,-599.93,0.00016849,2]
[351089849,1738330254629,-595.18,0.00016849,2]
[351089850,1738330254639,-557.9,0.00016849,2]
[351089851,1738330254648,-500.0,0.00016849,2]
[351089852,1738330254657,-500.0,0.00016849,2]
[351089853,1738330254666,-658.91,0.00016849,2]
[351089854,1738330254676,-500.0,0.00016849,2]
[351089855,1738330254685,-599.3,0.00016849,2]
[351089856,1738330254694,-590.44,0.00016849,2]
[351089857,1738330254704,-633.02,0.00016849,2]
[351089858,1738330254714,-500.0,0.00016849,2]
[351089859,1738330254723,-500.0,0.00016849,2]
[351089860,1738330254733,-722.92,0.00016849,2]
[351089861,1738330254742,-500.0,0.00016849,2]
[351089862,1738330254751,-1091.9,0.00016849,2]
[351089863,1738330254761,-813.36,0.00016849,2]
[351089864,1738330254771,-501.67,0.00016849,2]
[351089865,1738330254780,-500.0,0.00016849,2]
[351089866,1738330254790,-1147.13,0.00016849,2]
[351089867,1738330254799,-665.96,0.00016849,2]
[351089868,1738330254809,-500.0,0.00016849,2]
[351089869,1738330254818,-500.0,0.00016849,2]
[351089870,1738330254827,-899.19,0.00016849,2]
[351089871,1738330254836,-1174.92,0.00016849,2]
[351089872,1738330254846,-668.92,0.00016849,2]
[351089873,1738330254855,-912.48,0.00016849,2]
[351089874,1738330254864,-1476.07,0.00016849,2]
[351089875,1738330254874,-153.065871,0.00016849,2]
[351089876,1738330254883,-648.91,0.00016849,2]
[351089877,1738330254892,-650.58,0.00016849,2]
[351089878,1738330254902,-2128.17,0.00016849,2]
[351089879,1738330254911,-500.0,0.00016849,2]
[351089880,1738330254921,-689.56,0.00016849,2]
[351089881,1738330254932,-820.44,0.00016849,2]
[351089882,1738330254941,-971.49,0.00016849,2]
[351089883,1738330254950,-2443.42,0.00016849,2]
[351089884,1738330254959,-1597.55,0.00016849,2]
[351089885,1738330254969,-928.42,0.00016849,2]
[351089886,1738330254978,-1387.33,0.00016849,2]
[351089887,1738330254988,-500.0,0.00016849,2]
[351089888,1738330254997,-500.0,0.00016849,2]
[351089889,1738330255006,-2195.25,0.00016849,2]
[351089890,1738330255016,-693.9,0.00016849,2]
[351089891,1738330255025,-872.91,0.00016849,2]
[351089892,1738330255035,-10802.73,0.00016849,2]
[351089893,1738330255045,-1041.55,0.00016849,2]
[351089894,1738330255054,-777.0,0.00016849,2]
[351089895,1738330255063,-616.99,0.00016849,2]
[351089896,1738330255072,-2419.41,0.00016849,2]
[351089897,1738330255081,-1574.18,0.00016849,2]
[351089898,1738330255090,-1389.39,0.00016849,2]
[351089899,1738330255100,-1164.06,0.00016849,2]
[351089900,1738330255109,-892.74,0.00016849,2]
[351089901,1738330255118,-153.065872,0.00016849,2]
[351089902,1738330255127,-683.62,0.00016849,2]
[351089903,1738330255137,-1428.06,0.00016849,2]
[351089904,1738330255146,-1479.4,0.00016849,2]
[351089905,1738330255155,-500.0,0.00016849,2]
[351089906,1738330255165,-955.05,0.00016849,2]
[351089907,1738330255174,-788.4,0.00016849,2]
[351089908,1738330255184,-296.33601487,0.00016849,2]
[351089909,1738330255193,-1032.5,0.00016849,2]
[351089910,1738330255203,-788.97,0.00016849,2]
[351089911,1738330255212,-1281.17,0.00016849,2]
[351089912,1738330255221,-599.37,0.00016849,2]
[351089913,1738330255230,-1774.15,0.00016849,2]
[351089914,1738330255239,-853.36,0.00016849,2]
[351089915,1738330255249,-665.64,0.00016849,2]
[351089916,1738330255258,-692.58,0.00016849,2]
[351089917,1738330255268,-4499.05,0.00016849,2]
[351089918,1738330255285,-2204.99,0.00016849,2]
[351089919,1738330255297,-500.0,0.00016849,2]
[351089920,1738330255306,-1244.32,0.00016849,2]
[351089921,1738330255317,-500.0,0.00016849,2]
[351089922,1738330255326,-2221.39,0.00016849,2]
[351089923,1738330255335,-582.68,0.00016849,2]
[351089924,1738330255345,-1029.05,0.00016849,2]
[351089925,1738330255355,-1011.4,0.00016849,2]
[351089926,1738330255364,-1376.47,0.00016849,2]
[351089927,1738330255374,-4123.97,0.00016849,2]
[351089928,1738330255384,-1294.35,0.00016849,2]
[351089929,1738330255394,-902.32,0.00016849,2]
[351089930,1738330255403,-847.74,0.00016849,2]
[351089931,1738330255422,-533.87,0.00016849,2]
[351089932,1738330255432,-2673.95,0.00016849,2]
[351089933,1738330255441,-153.065871,0.00016849,2]
[351089934,1738330255450,-3729.53,0.00016849,2]
[351089935,1738330255461,-500.0,0.00016849,2]
[351089936,1738330255472,-1251.69,0.00016849,2]
[351089937,1738330255481,-860.21,0.00016849,2]
[351089938,1738330255491,-992.97,0.00016849,2]
[351089939,1738330255501,-987.07,0.00016849,2]
[351089940,1738330255511,-756.61,0.00016849,2]
[351089941,1738330255520,-664.58,0.00016849,2]
[351089942,1738330255530,-502.19,0.00016849,2]
[351089943,1738330255542,-1951.73,0.00016849,2]
[351089944,1738330255552,-630.67,0.00016849,2]
[351089945,1738330255561,-500.0,0.00016849,2]
[351089946,1738330255570,-915.53,0.00016849,2]
[351089947,1738330255580,-637.45,0.00016849,2]
[351089948,1738330255591,-500.0,0.00016849,2]
[351089949,1738330255600,-500.0,0.00016849,2]
[351089950,1738330255610,-500.0,0.00016849,2]
[351089951,1738330255622,-1177.21,0.00016849,2]
[351089952,1738330255632,-1804.68,0.00016849,2]
[351089953,1738330255641,-2725.19,0.00016849,2]
[351089954,1738330255651,-1925.39,0.00016849,2]
[351089955,1738330255660,-2309.95,0.00016849,2]
[351089956,1738330255670,-1862.18,0.00016849,2]
[351089957,1738330255681,-780.22,0.00016849,2]
[351089958,1738330255691,-977.44,0.00016849,2]
[351089959,1738330255700,-1774.6,0.00016849,2]
[351089960,1738330255712,-991.11,0.00016849,2]
[351089961,1738330255722,-1285.72,0.00016849,2]
[351089962,1738330255731,-500.0,0.00016849,2]
[351089963,1738330255740,-1845.86,0.00016849,2]
[351089964,1738330255750,-500.0,0.00016849,2]
[351089965,1738330255760,-1408.31,0.00016849,2]
[351089966,1738330255769,-1126.86,0.00016849,2]
[351089967,1738330255778,-1863.64,0.00016849,2]
[351089968,1738330255788,-2837.3,0.00016849,2]
[351089969,1738330255799,-500.0,0.00016849,2]
[351089970,1738330255810,-3575.8,0.00016849,2]
[351089971,1738330255819,-2345.02,0.00016849,2]
[351089972,1738330255829,-980.91,0.00016849,2]
[351089973,1738330255838,-710.22,0.00016849,2]
[351089974,1738330255847,-3520.76,0.00016849,2]
[351089975,1738330255856,-6700.13,0.00016849,2]
[351089976,1738330255865,-547.17,0.00016849,2]
[351089977,1738330255874,-500.0,0.00016849,2]
[351089978,1738330255884,-1788.65,0.00016849,2]
[351089979,1738330255893,-500.0,0.00016849,2]
[351089980,1738330255902,-2184.0,0.00016849,2]
[351089981,1738330255911,-1475.22,0.00016849,2]
[351089982,1738330255920,-1421.48,0.00016849,2]
[351089983,1738330255929,-1714.53,0.00016849,2]
[351089984,1738330255944,-5708.97,0.00016849,2]
[351089985,1738330255958,-970.99,0.00016849,2]
[351089986,1738330255973,-1202.06,0.00016849,2]
[351089987,1738330255986,-706.33,0.00016849,2]
[351089988,1738330255997,-560.35,0.00016849,2]
[351089989,1738330256008,-500.0,0.00016849,2]
[351089990,1738330256020,-721.8,0.00016849,2]
[351089991,1738330256033,-3593.68,0.00016849,2]
[351089992,1738330256046,-3176.65,0.00016849,2]
[351089993,1738330256058,-1388.69,0.00016849,2]
[351089994,1738330256070,-6333.8,0.00016849,2]
[351089995,1738330256083,-3896.66,0.00016849,2]
[351089996,1738330256095,-4983.19,0.00016849,2]
[351089997,1738330256108,-806.85,0.00016849,2]
[351089998,1738330256121,-2323.16,0.00016849,2]
[351089999,1738330256132,-500.0,0.00016849,2]
[351090000,1738330256144,-3058.4,0.00016849,2]
[351090001,1738330256154,-5624.37,0.00016849,2]
[351090002,1738330256164,-1642.11,0.00016849,2]
[351090003,1738330256175,-3233.65,0.00016849,2]
[351090004,1738330256188,-500.0,0.00016849,2]
[351090005,1738330256200,-2404.98,0.00016849,2]
[351090006,1738330256212,-500.0,0.00016849,2]
[351090007,1738330256224,-1835.72,0.00016849,2]
[351090008,1738330256237,-1960.06,0.00016849,2]
[351090009,1738330256248,-500.0,0.00016849,2]
[351090010,1738330256260,-5138.96,0.00016849,2]
[351090011,1738330256272,-1039.18,0.00016849,2]
[351090012,1738330256284,-500.0,0.00016849,2]
[351090013,1738330256296,-500.0,0.00016849,2]
[351090014,1738330256308,-930.69,0.00016849,2]
[351090015,1738330256322,-6256.88,0.00016849,2]
[351090016,1738330256334,-2029.44,0.00016849,2]
[351090017,1738330256346,-533.32,0.00016849,2]
[351090018,1738330256357,-500.0,0.00016849,2]
[351090019,1738330256370,-5102.8,0.00016849,2]
[351090020,1738330256381,-2497.8,0.00016849,2]
[351090021,1738330256393,-787.65,0.00016849,2]
[351090022,1738330256406,-500.0,0.00016849,2]
[351090023,1738330256419,-500.0,0.00016849,2]
[351090024,1738330256434,-2405.42,0.00016849,2]
[351090025,1738330256445,-6171.09,0.00016849,2]
[351090026,1738330256457,-509.52,0.00016849,2]
[351090027,1738330256469,-308.78,0.00016849,2]
[351090028,1738330256480,-547.19,0.00016849,2]
[351090029,1738330256491,-825.38,0.00016849,2]
[351090030,1738330256503,-500.0,0.00016849,2]
[351090031,1738330256513,-1388.58,0.00016849,2]
[351090032,1738330256527,-1907.72,0.00016849,2]
[351090033,1738330256542,-500.0,0.00016849,2]
[351090034,1738330256553,-647.17,0.00016849,2]
[351090035,1738330256564,-500.0,0.00016849,2]
[351090036,1738330256575,-1179.41,0.00016849,2]
[351090037,1738330256585,-1165.58,0.00016849,2]
[351090038,1738330256596,-918.66,0.00016856,2]
[351090039,1738330256609,-386.75930587,0.00016887,2]
[351090040,1738330256624,-162.16197459,0.00016947,2]
[351090041,1738330256636,-3000.0,0.0001695,2]
[351090042,1738330256648,-5573.68497534,0.0001696,2]
[351090043,1738330256659,-500.0,0.00016985,2]
[351090044,1738330256669,-500.0,0.00016985,2]
[351090045,1738330256679,-500.0,0.00016985,2]
[351090046,1738330256692,-500.0,0.00016985,2]
[351090047,1738330256704,-500.0,0.00016985,2]
[351090048,1738330256714,-500.0,0.00016985,2]
[351090049,1738330256726,-500.0,0.00016985,2]
[351090050,1738330256737,-500.0,0.00016985,2]
[351090051,1738330256748,-500.0,0.00016985,2]
[351090052,1738330256766,-500.0,0.00016985,2]
[351090053,1738330256779,-500.0,0.00016985,2]
[351090054,1738330256793,-500.0,0.00016985,2]
[351090055,1738330256806,-647.45,0.00016985,2]
[351090056,1738330256819,-500.0,0.00016985,2]
[351090057,1738330256832,-190.30812803,0.00016985,2]
[351090058,1738330256846,-500.0,0.00016985,2]
[351090059,1738330256860,-500.0,0.00016985,2]
[351090060,1738330256874,-500.0,0.00016985,2]
[351090061,1738330256886,-500.0,0.00016985,2]
[351090062,1738330256900,-533.58,0.00016985,2]
[351090063,1738330256913,-500.0,0.00016985,2]
[351090064,1738330256925,-500.0,0.00016985,2]
[351090065,1738330256938,-500.0,0.00016985,2]
[351090066,1738330256950,-921.76,0.00016985,2]
[351090067,1738330256964,-500.0,0.00016985,2]
[351090068,1738330256976,-554.28,0.00016985,2]
[351090069,1738330256987,-500.0,0.00016985,2]
[351090070,1738330257002,-500.0,0.00016985,2]
[351090071,1738330257014,-500.0,0.00016985,2]
[351090072,1738330257026,-232.43729793,0.00016985,2]
[351090073,1738330257038,-500.0,0.00016985,2]
[351090074,1738330257050,-535.26,0.00016985,2]
[351090075,1738330257061,-500.0,0.00016985,2]
[351090076,1738330257073,-500.0,0.00016985,2]
[351090077,1738330257085,-500.0,0.00016985,2]
[351090078,1738330257098,-616.3121679,0.00016985,2]
[351090079,1738330257110,-548.31,0.00016985,2]
[351090080,1738330257122,-500.0,0.00016985,2]
[351090081,1738330257136,-500.0,0.00016985,2]
[351090082,1738330257147,-500.0,0.00016985,2]
[351090083,1738330257160,-500.0,0.00016985,2]
[351090084,1738330257172,-504.97,0.00016985,2]
[351090085,1738330257185,-500.0,0.00016985,2]
[351090086,1738330257196,-500.0,0.00016985,2]
[351090087,1738330257208,-500.0,0.00016985,2]
[351090088,1738330257220,-500.0,0.00016985,2]
[351090089,1738330257231,-500.0,0.00016985,2]
[351090090,1738330257243,-500.0,0.00016985,2]
[351090091,1738330257255,-672.19,0.00016985,2]
[351090092,1738330257267,-500.0,0.00016985,2]
[351090093,1738330257278,-500.0,0.00016985,2]
[351090094,1738330257289,-500.0,0.00016985,2]
[351090095,1738330257300,-718.71,0.00016985,2]
[351090096,1738330257311,-500.0,0.00016985,2]
[351090097,1738330257322,-500.0,0.00016985,2]
[351090098,1738330257334,-500.0,0.00016985,2]
[351090099,1738330257344,-500.0,0.00016985,2]
[351090100,1738330257357,-500.0,0.00016985,2]
[351090101,1738330257369,-500.0,0.00016985,2]
[351090102,1738330257380,-500.0,0.00016985,2]
[351090103,1738330257392,-404.69654038,0.00016985,2]
[351090104,1738330257402,-3437.57,0.00016985,2]
[351090105,1738330257413,-527.97,0.00016985,2]
[351090106,1738330257425,-1958.17,0.00016985,2]
[351090107,1738330257437,-500.0,0.00016985,2]
[351090108,1738330257448,-1086.27,0.00016985,2]